[Event "WYCC 2018 G14"]
[Site "Halkidiki"]
[Date "2018.10.27"]
[Round "8"]
[White "Wen, Yili"]
[Black "Nurgali, Nazerke"]
[Result "1-0"]
[ECO "A14"]
[WhiteElo "2083"]
[BlackElo "2263"]
[Annotator "NA"]
[PlyCount "109"]
[EventDate "2018.10.20"]
[EventType "swiss"]
[EventCountry "GRE"]
[SourceTitle "playchess.com"]
[Source "ChessBase"]
[SourceQuality "1"]
[TimeControl "40/5400+30:1800+30"]

1. Nf3 {[%emt 0:00:00]} d5 {[%emt 0:00:00]} 2. c4 {[%emt 0:00:00]} e6 {[%emt 0:00:00]} 3. g3 {[%emt 0:00:00]} Nf6 {[%emt 0:00:18]} 4. Bg2 {[%emt 0:00:00]} Be7 {[%emt 0:00:16]} 5. O-O {[%emt 0:00:04]} O-O {[%emt 0:00:30]} 6. d4 {[%emt 0:00:05]} b6 {[%emt 0:00:21]} 7. cxd5 {[%emt 0:00:18]} exd5 {[%emt 0:00:19]} 8. Nc3 {[%emt 0:00:06]} Bb7 {[%emt 0:00:24]} 9. Bf4 {[%emt 0:00:08]} Na6 {[%emt 0:00:23]} 10. Rc1 {[%emt 0:00:07]} c5 {[%emt 0:00:25]} 11. a3 {[%emt 0:01:26]} Re8 $11 {[%emt 0:05:34] LiveBook: 6 Games} 12. Qc2 {[%emt 0:01:55]} Qd7 {[%emt 0:03:48]} 13. dxc5 {[%emt 0:01:16]} Bxc5 {[%emt 0:05:42]} 14. b4 {[%emt 0:10:06]} Bd6 {[%emt 0:02:43]} 15. Bxd6 Qxd6 {[%emt 0:00:04]} 16. Rfd1 {[%emt 0:03:30]} Qe7 {[%emt 0:07:46]} 17. e3 {[%emt 0:03:11]} Nc7 {[%emt 0:03:21]} 18. Qb3 {[%emt 0:04:10]} Red8 {[%emt 0:02:22]} 19. Nd4 {[%emt 0:03:03]} g6 {[%emt 0:04:25]} 20. Ncb5 {[%emt 0:02:08]} Nxb5 {[%emt 0:07:43]} 21. Nxb5 {[%emt 0:00:02]} a6 {[%emt 0:05:34]} 22. Rc7 {[%emt 0:15:25]} Rd7 {[%emt 0:03:08]} 23. Rxd7 {[%emt 0:00:13]} Qxd7 {[%emt 0:00:03]} 24. Nc3 {[%emt 0:00:25]} Rd8 {[%emt 0:01:32]} 25. Nxd5 {[%emt 0:02:04]} Nxd5 {[%emt 0:04:44]} 26. e4 {[%emt 0:00:29]} Bc6 {[%emt 0:01:28]} 27. Qf3 {[%emt 0:07:04]} Ba4 {[%emt 0:15:41]} 28. Rxd5 {[%emt 0:01:00]} Qc7 {[%emt 0:00:04]} 29. Qf4 {[%emt 0:01:32]} Qc8 {[%emt 0:01:00]} 30. Qd2 {[%emt 0:02:28]} Re8 {[%emt 0:06:06]} 31. h4 {[%emt 0:00:42]} Qc7 {[%emt 0:01:45]} 32. h5 {[%emt 0:02:19]} Qe7 {[%emt 0:04:38]} 33. Qd4 {[%emt 0:06:05]} Bb3 {[%emt 0:02:59]} 34. Rd7 {[%emt 0:05:09]} Qg5 {[%emt 0:00:35]} 35. Qxb6 {[%emt 0:03:07]} Qxh5 {[%emt 0:05:02]} 36. Rd8 {[%emt 0:04:00]} Rxd8 {[%emt 0:00:19]} 37. Qxd8+ {[%emt 0:00:02]} Kg7 {[%emt 0:00:03]} 38. Qd4+ {[%emt 0:01:27]} Kg8 {[%emt 0:00:16]} 39. Qd3 {[%emt 0:00:10]} Ba4 {[%emt 0:01:52]} 40. Qxa6 {[%emt 0:00:00]} Bb5 {[%emt 0:00:00]} 41. Qc8+ {[%emt 0:01:47]} Kg7 {[%emt 0:01:31]} 42. Qc3+ {[%emt 0:00:17]} Kg8 {[%emt 0:00:43]} 43. Bf3 {[%emt 0:02:01]} Qh3 {[%emt 0:00:33]} 44. Qe1 {[%emt 0:04:02]} h5 {[%emt 0:04:20]} 45. Qd1 {[%emt 0:03:34]} Bd7 {[%emt 0:04:51]} 46. Bg2 {[%emt 0:01:17]} Qe6 {[%emt 0:00:04]} 47. a4 {[%emt 0:01:31]} h4 {[%emt 0:03:37]} 48. gxh4 {[%emt 0:00:37]} Bc6 {[%emt 0:03:34]} 49. b5 {[%emt 0:07:38]} Be8 {[%emt 0:02:09]} 50. Qd5 {[%emt 0:01:09]} Qc8 {[%emt 0:00:13]} 51. a5 {[%emt 0:03:18]} Qc1+ {[%emt 0:00:08]} 52. Bf1 {[%emt 0:00:20]} Qf4 {[%emt 0:00:53]} 53. a6 {[%emt 0:01:01]} Qc7 {[%emt 0:04:11]} 54. Qb7 {[%emt 0:01:47]} Qf4 {[%emt 0:00:06]} 55. Qc8 {[%emt 0:00:50]} 1-0

[Event "WYCC 2018 G14"]
[Site "Halkidiki"]
[Date "2018.10.27"]
[Round "8"]
[White "Dylag, Emilia"]
[Black "Zhu, Evelyn"]
[Result "0-1"]
[ECO "D10"]
[WhiteElo "2059"]
[BlackElo "1926"]
[Annotator "NA"]
[PlyCount "96"]
[EventDate "2018.10.20"]
[EventType "swiss"]
[EventCountry "GRE"]
[SourceTitle "playchess.com"]
[Source "ChessBase"]
[SourceQuality "1"]
[TimeControl "40/5400+30:1800+30"]

1. d4 {[%emt 0:00:00]} d5 {[%emt 0:00:00]} 2. c4 {[%emt 0:00:00]} c6 {[%emt 0:00:00]} 3. cxd5 {[%emt 0:00:02]} cxd5 {[%emt 0:00:00]} 4. Nc3 {[%emt 0:00:15]} Nf6 {[%emt 0:00:28]} 5. Bf4 {[%emt 0:00:42]} Nc6 {[%emt 0:00:53]} 6. e3 {[%emt 0:00:49]} a6 {[%emt 0:02:38]} 7. Bd3 $11 {[%emt 0:00:50] LiveBook: 1273 Games} e6 {[%emt 0:05:27]} 8. Nge2 {[%emt 0:03:13]} Bd6 {[%emt 0:02:45]} 9. Rc1 {[%emt 0:06:16]} O-O {[%emt 0:05:26]} 10. O-O {[%emt 0:01:26]} h6 {[%emt 0:06:53]} 11. a3 {[%emt 0:04:53]} Bxf4 {[%emt 0:07:55]} 12. Nxf4 {[%emt 0:01:32]} Qd6 {[%emt 0:00:47]} 13. Bb1 {[%emt 0:07:02]} Nd7 {[%emt 0:09:08]} 14. b4 {[%emt 0:07:33]} Ne7 {[%emt 0:04:08]} 15. Qc2 {[%emt 0:10:35]} f5 {[%emt 0:02:29]} 16. Na4 {[%emt 0:04:06]} Nc6 {[%emt 0:11:21]} 17. Rfd1 {[%emt 0:07:45]} g5 {[%emt 0:04:01]} 18. Ne2 {[%emt 0:01:16]} Nf6 {[%emt 0:02:49]} 19. Qc5 {[%emt 0:11:26]} Qc7 {[%emt 0:02:09]} 20. Nb6 {[%emt 0:05:54]} Rb8 {[%emt 0:01:50]} 21. a4 {[%emt 0:01:54]} Ng4 {[%emt 0:11:41]} 22. g3 {[%emt 0:03:24]} Qf7 {[%emt 0:01:25]} 23. h3 {[%emt 0:03:05]} Nf6 {[%emt 0:01:17]} 24. Kg2 {[%emt 0:03:38]} Ne4 {[%emt 0:02:04]} 25. Qc2 {[%emt 0:02:20]} Nxb4 {[%emt 0:01:03]} 26. Qb2 {[%emt 0:00:55]} Nc6 {[%emt 0:01:02]} 27. Nxd5 {[%emt 0:02:54]} exd5 {[%emt 0:01:34]} 28. f3 {[%emt 0:00:33]} Bd7 {[%emt 0:08:39]} 29. fxe4 {[%emt 0:00:47]} fxe4 {[%emt 0:00:02]} 30. Rf1 {[%emt 0:01:03]} Qe6 {[%emt 0:00:48]} 31. Ng1 {[%emt 0:00:54]} Na5 {[%emt 0:01:45]} 32. Ba2 {[%emt 0:01:22]} b5 {[%emt 0:00:54]} 33. Rxf8+ {[%emt 0:04:34]} Rxf8 {[%emt 0:00:01]} 34. Rf1 {[%emt 0:00:36]} Rxf1 {[%emt 0:02:14]} 35. Kxf1 {[%emt 0:00:05]} bxa4 {[%emt 0:01:07]} 36. Qb8+ {[%emt 0:01:30]} Kg7 {[%emt 0:00:01]} 37. g4 {[%emt 0:01:37]} Nc4 {[%emt 0:00:56]} 38. Ke2 {[%emt 0:01:09]} Qf7 {[%emt 0:00:46]} 39. Bxc4 {[%emt 0:00:44]} dxc4 {[%emt 0:00:01]} 40. Qe5+ {[%emt 0:00:00]} Qf6 {[%emt 0:00:00]} 41. Qxe4 {[%emt 0:00:55]} a3 {[%emt 0:04:33]} 42. Qc2 {[%emt 0:02:55]} Bc6 {[%emt 0:13:28]} 43. Qc3 {[%emt 0:05:45]} a2 {[%emt 0:05:08]} 44. Ke1 {[%emt 0:07:56]} Bg2 {[%emt 0:01:36]} 45. Kd2 {[%emt 0:00:57]} Qf2+ {[%emt 0:03:01]} 46. Ne2 {[%emt 0:00:07]} Bf1 {[%emt 0:00:45]} 47. d5+ {[%emt 0:00:15]} Kf7 {[%emt 0:00:21]} 48. Qxc4 {[%emt 0:00:39]} Qxe2+ {[%emt 0:00:09]} 0-1

[Event "WYCC 2018 G14"]
[Site "Halkidiki"]
[Date "2018.10.27"]
[Round "8"]
[White "Mehmed, Elif"]
[Black "Zhou, Iris"]
[Result "1-0"]
[ECO "B13"]
[WhiteElo "2049"]
[BlackElo "1779"]
[Annotator "NA"]
[PlyCount "107"]
[EventDate "2018.10.20"]
[EventType "swiss"]
[EventCountry "GRE"]
[SourceTitle "playchess.com"]
[Source "ChessBase"]
[SourceQuality "1"]
[TimeControl "40/5400+30:1800+30"]

1. e4 {[%emt 0:00:00]} c6 {[%emt 0:00:00]} 2. d4 {[%emt 0:00:00]} d5 {[%emt 0:00:00]} 3. exd5 {[%emt 0:00:00]} cxd5 {[%emt 0:00:00]} 4. c4 {[%emt 0:00:07]} Nf6 {[%emt 0:00:09]} 5. Nc3 {[%emt 0:00:14]} Nc6 {[%emt 0:02:43]} 6. Bg5 {[%emt 0:01:44]} dxc4 {[%emt 0:04:59]} 7. Bxc4 {[%emt 0:00:13]} h6 {[%emt 0:16:01]} 8. Be3 {[%emt 0:00:14]} e6 $11 {[%emt 0:02:13]} 9. Nf3 {[%emt 0:00:53]} Be7 {[%emt 0:00:41]} 10. O-O {[%emt 0:00:49]} O-O {[%emt 0:00:32]} 11. Qe2 {[%emt 0:00:41]} Nb4 {[%emt 0:04:06]} 12. Ne5 {[%emt 0:07:21]} a6 {[%emt 0:04:11]} 13. Bb3 {[%emt 0:10:17]} Nbd5 {[%emt 0:08:14]} 14. Rac1 {[%emt 0:07:59]} b5 {[%emt 0:12:57]} 15. Nxd5 {[%emt 0:04:36]} Nxd5 {[%emt 0:00:07]} 16. Nc6 {[%emt 0:00:10]} Qd7 {[%emt 0:00:52]} 17. Bxd5 {[%emt 0:04:22]} exd5 {[%emt 0:00:05]} 18. Bxh6 {[%emt 0:01:39]} Bf6 {[%emt 0:03:41]} 19. Bf4 {[%emt 0:06:56]} Bb7 {[%emt 0:02:02]} 20. Na5 {[%emt 0:00:40]} Rac8 {[%emt 0:02:09]} 21. Qd3 {[%emt 0:04:17]} Rfe8 {[%emt 0:02:35]} 22. Rfe1 {[%emt 0:10:47]} Ba8 {[%emt 0:03:17]} 23. f3 {[%emt 0:06:01]} Re6 {[%emt 0:05:05]} 24. Rxc8+ {[%emt 0:01:03]} Qxc8 {[%emt 0:02:25]} 25. Rc1 {[%emt 0:03:55]} Qe8 {[%emt 0:01:06]} 26. Kf2 {[%emt 0:01:37]} Bh4+ {[%emt 0:02:14]} 27. g3 {[%emt 0:00:32]} Bf6 {[%emt 0:00:37]} 28. Nb3 {[%emt 0:02:06]} Be7 {[%emt 0:04:47]} 29. Rc7 {[%emt 0:04:28]} Bb4 {[%emt 0:01:58]} 30. a3 {[%emt 0:05:40]} Bf8 {[%emt 0:02:01]} 31. Qc2 {[%emt 0:01:37]} Bc6 {[%emt 0:02:32]} 32. Na5 {[%emt 0:00:56]} Bd7 {[%emt 0:00:07]} 33. Rb7 {[%emt 0:05:50]} b4 {[%emt 0:06:19]} 34. Rb8 {[%emt 0:03:29]} Qe7 {[%emt 0:00:04]} 35. a4 {[%emt 0:03:39]} b3 {[%emt 0:01:01]} 36. Nxb3 {[%emt 0:00:35]} Bxa4 {[%emt 0:00:15]} 37. Qc5 {[%emt 0:01:38]} Re2+ {[%emt 0:02:38]} 38. Kg1 {[%emt 0:00:11]} Re1+ {[%emt 0:00:43]} 39. Kg2 {[%emt 0:00:04]} Re2+ {[%emt 0:00:40]} 40. Kh3 {[%emt 0:00:00]} Qe6+ {[%emt 0:00:00]} 41. g4 {[%emt 0:00:43]} Be8 {[%emt 0:02:27]} 42. Qc8 {[%emt 0:15:18]} Qe7 {[%emt 0:05:27]} 43. Qd8 {[%emt 0:03:06]} Qxd8 {[%emt 0:13:34]} 44. Rxd8 {[%emt 0:00:07]} f6 {[%emt 0:03:14]} 45. Nc1 {[%emt 0:01:00]} Re6 {[%emt 0:00:59]} 46. Rxd5 {[%emt 0:01:03]} Bc6 {[%emt 0:00:51]} 47. Rd8 {[%emt 0:00:19]} Bxf3 {[%emt 0:03:25]} 48. d5 {[%emt 0:00:59]} Rb6 {[%emt 0:00:57]} 49. Bc7 {[%emt 0:01:07]} Rb7 {[%emt 0:03:50]} 50. d6 {[%emt 0:02:06]} Kf7 {[%emt 0:01:19]} 51. Rxf8+ {[%emt 0:01:44]} Kxf8 {[%emt 0:00:44]} 52. d7 {[%emt 0:00:04]} Bxg4+ 53. Kxg4 {[%emt 0:00:12]} Rb4+ {[%emt 0:00:13]} 54. Kf3 {[%emt 0:00:25]} 1-0

[Event "WYCC 2018 G14"]
[Site "Halkidiki"]
[Date "2018.10.27"]
[Round "8"]
[White "Dhyana Patel"]
[Black "Tien, Sophie"]
[Result "1-0"]
[ECO "C68"]
[WhiteElo "2002"]
[BlackElo "1648"]
[Annotator "NA"]
[PlyCount "115"]
[EventDate "2018.10.20"]
[EventType "swiss"]
[EventCountry "GRE"]
[SourceTitle "playchess.com"]
[Source "ChessBase"]
[SourceQuality "1"]
[TimeControl "40/5400+30:1800+30"]

1. e4 {[%emt 0:00:00]} e5 {[%emt 0:00:00]} 2. Nf3 {[%emt 0:00:27]} Nc6 {[%emt 0:00:02]} 3. Bb5 {[%emt 0:00:26]} a6 {[%emt 0:00:22]} 4. Bxc6 {[%emt 0:00:42]} dxc6 {[%emt 0:00:17]} 5. O-O {[%emt 0:00:33]} Bg4 {[%emt 0:00:59]} 6. h3 {[%emt 0:00:23]} h5 {[%emt 0:01:03]} 7. d3 {[%emt 0:00:25] LiveBook: 688 Games} ({Much weaker is} 7. hxg4 hxg4 8. g3 gxf3 $17) 7... Qf6 {[%emt 0:02:01]} 8. Be3 {[%emt 0:00:32]} Ne7 {[%emt 0:04:04]} 9. Nbd2 {[%emt 0:04:48]} Bxf3 {[%emt 0:09:05]} 10. Qxf3 $11 {[%emt 0:02:30]} Qe6 {[%emt 0:06:15]} 11. Nb3 {[%emt 0:01:50]} Ng6 {[%emt 0:01:36]} 12. d4 {[%emt 0:01:38]} O-O-O {[%emt 0:02:55]} 13. Rfd1 {[%emt 0:01:28]} Be7 {[%emt 0:04:36]} 14. dxe5 {[%emt 0:05:37]} Nxe5 {[%emt 0:01:22]} 15. Rxd8+ {[%emt 0:01:22]} Bxd8 {[%emt 0:02:13]} 16. Qe2 {[%emt 0:00:43]} Be7 {[%emt 0:04:22]} 17. Nd4 {[%emt 0:03:02]} Qc4 {[%emt 0:04:10]} 18. Kf1 {[%emt 0:02:24]} Qxe2+ {[%emt 0:03:40]} 19. Kxe2 {[%emt 0:00:34]} Nc4 {[%emt 0:00:28]} 20. Rb1 {[%emt 0:09:48]} Nxe3 {[%emt 0:06:41]} 21. Kxe3 {[%emt 0:01:10]} Bf6 {[%emt 0:00:18]} 22. Nf3 {[%emt 0:04:15]} Re8 {[%emt 0:04:39]} 23. c3 {[%emt 0:00:49]} c5 {[%emt 0:01:47]} 24. Rd1 {[%emt 0:01:04]} c6 {[%emt 0:01:48]} 25. Kf4 {[%emt 0:01:30]} b5 {[%emt 0:04:54]} 26. e5 {[%emt 0:00:26]} Be7 {[%emt 0:00:16]} 27. Rd3 {[%emt 0:04:40]} c4 {[%emt 0:05:18]} 28. Rd2 {[%emt 0:01:44]} c5 {[%emt 0:00:38]} 29. Ke4 {[%emt 0:02:55]} Kc7 {[%emt 0:01:48]} 30. Ne1 {[%emt 0:04:38]} g6 {[%emt 0:11:11]} 31. f4 {[%emt 0:02:03]} f5+ {[%emt 0:01:18]} 32. Kf3 {[%emt 0:01:08]} h4 {[%emt 0:01:49]} 33. Nc2 {[%emt 0:01:49]} Rd8 {[%emt 0:03:45]} 34. Rxd8 {[%emt 0:00:18]} Bxd8 {[%emt 0:00:11]} 35. Ne3 {[%emt 0:00:16]} Kd7 {[%emt 0:00:52]} 36. g4 {[%emt 0:01:24]} hxg3 {[%emt 0:00:52]} 37. Kxg3 {[%emt 0:00:02]} Ke6 {[%emt 0:00:27]} 38. h4 {[%emt 0:00:27]} a5 {[%emt 0:01:29]} 39. a4 {[%emt 0:02:43]} b4 {[%emt 0:02:00]} 40. Nxc4 {[%emt 0:00:00]} bxc3 {[%emt 0:00:00]} 41. bxc3 {[%emt 0:01:15]} Kf7 {[%emt 0:19:35]} 42. Nd6+ {[%emt 0:00:25]} Ke6 {[%emt 0:01:09]} 43. c4 {[%emt 0:00:04]} Be7 {[%emt 0:08:56]} 44. Nb7 {[%emt 0:00:12]} Kd7 {[%emt 0:00:11]} 45. Nxa5 {[%emt 0:01:16]} Kc7 {[%emt 0:00:07]} 46. Nb3 {[%emt 0:00:32]} Kb6 {[%emt 0:00:13]} 47. a5+ {[%emt 0:02:56]} Kb7 {[%emt 0:03:30]} 48. Nc1 {[%emt 0:00:15]} Ka6 {[%emt 0:00:28]} 49. Ne2 {[%emt 0:00:13]} Kxa5 {[%emt 0:00:33]} 50. Nc3 {[%emt 0:00:04]} Ka6 {[%emt 0:00:58]} 51. Nd5 {[%emt 0:00:04]} Bd8 {[%emt 0:00:16]} 52. e6 {[%emt 0:00:06]} Ka5 {[%emt 0:00:25]} 53. e7 {[%emt 0:00:12]} Bxe7 {[%emt 0:00:06]} 54. Nxe7 {[%emt 0:00:02]} Kb4 {[%emt 0:00:07]} 55. Nxg6 {[%emt 0:00:04]} Kxc4 {[%emt 0:00:05]} 56. h5 {[%emt 0:00:05]} Kd3 {[%emt 0:00:08]} 57. h6 {[%emt 0:00:10]} c4 {[%emt 0:00:04]} 58. Ne5+ {[%emt 0:00:08]} 1-0

[Event "WYCC 2018 G14"]
[Site "Halkidiki"]
[Date "2018.10.27"]
[Round "8"]
[White "Eizaguerri Floris, Maria"]
[Black "Song, Yuxin"]
[Result "1/2-1/2"]
[ECO "B51"]
[WhiteElo "1987"]
[BlackElo "2178"]
[Annotator "NA"]
[PlyCount "82"]
[EventDate "2018.10.20"]
[EventType "swiss"]
[EventCountry "GRE"]
[SourceTitle "playchess.com"]
[Source "ChessBase"]
[SourceQuality "1"]
[TimeControl "40/5400+30:1800+30"]

1. e4 c5 2. Nf3 d6 3. Bb5+ Nd7 4. Ba4 Ngf6 5. O-O a6 6. c4 Nxe4 7. Re1 Nef6 8. d4 cxd4 9. Nxd4 g6 10. Bf4 e5 11. Nf3 Be7 12. c5 dxc5 13. Nxe5 O-O 14. Bh6 Nxe5 15. Bxf8 Qxf8 16. Rxe5 Bd6 17. Re1 b5 18. Bc2 Bb7 19. Nc3 Rd8 20. Qc1 Bc7 21. Be4 Bc8 22. Qg5 Ng4 23. g3 Be5 24. h3 h6 25. Qc1 Nf6 26. Bg2 Nd7 27. Qc2 Qg7 28. Rac1 Bd4 29. Rcd1 Ne5 30. Ne4 c4 31. b3 Nd3 32. Rf1 f5 33. Nd2 Nb4 34. Qc1 Nxa2 35. Qa3 Nc3 36. Rde1 cxb3 37. Nxb3 Bf6 38. Nc5 Qf7 39. Nxa6 Be6 40. Re3 Nd5 41. Rd3 Rc8 1/2-1/2

[Event "WYCC 2018 G14"]
[Site "Halkidiki"]
[Date "2018.10.27"]
[Round "8"]
[White "Matus, Nastassja"]
[Black "Caglar, Sila"]
[Result "0-1"]
[ECO "A48"]
[WhiteElo "1983"]
[BlackElo "2184"]
[Annotator "NA"]
[PlyCount "144"]
[EventDate "2018.10.20"]
[EventType "swiss"]
[EventCountry "GRE"]
[SourceTitle "playchess.com"]
[Source "ChessBase"]
[SourceQuality "1"]
[TimeControl "40/5400+30:1800+30"]

1. d4 {[%emt 0:00:00]} Nf6 {[%emt 0:00:00]} 2. Nf3 {[%emt 0:00:00]} g6 {[%emt 0:00:11]} 3. Bf4 {[%emt 0:00:00]} c5 {[%emt 0:00:42]} 4. e3 {[%emt 0:12:18]} Bg7 {[%emt 0:01:14]} 5. h3 {[%emt 0:08:45]} Qb6 {[%emt 0:03:16]} 6. Qc1 {[%emt 0:14:24]} O-O {[%emt 0:01:42]} 7. c3 {[%emt 0:02:02]} d5 {[%emt 0:02:04]} 8. Be2 {[%emt 0:02:47]} Nc6 {[%emt 0:02:26]} 9. O-O {[%emt 0:01:05]} Bf5 {[%emt 0:00:34]} 10. Nbd2 {[%emt 0:04:00]} Rac8 {[%emt 0:02:46]} 11. Nb3 {[%emt 0:12:42]} cxd4 {[%emt 0:07:36]} 12. exd4 {[%emt 0:05:22]} Ne4 {[%emt 0:02:36]} 13. Qe3 {[%emt 0:09:10]} a5 {[%emt 0:11:24]} 14. Nfd2 {[%emt 0:05:23]} Rfe8 {[%emt 0:13:48]} 15. Nxe4 {[%emt 0:04:33]} Bxe4 {[%emt 0:00:41]} 16. Qd2 {[%emt 0:06:29]} e5 {[%emt 0:12:25]} 17. dxe5 {[%emt 0:01:45]} Nxe5 {[%emt 0:00:16]} 18. Be3 {[%emt 0:02:51]} Qc7 {[%emt 0:00:54]} 19. Nc5 {[%emt 0:01:47]} Rcd8 {[%emt 0:08:32]} 20. Nxe4 {[%emt 0:01:15]} dxe4 {[%emt 0:00:07]} 21. Qc2 {[%emt 0:00:18]} Nc4 {[%emt 0:01:21]} 22. Bxc4 {[%emt 0:01:03]} Qxc4 {[%emt 0:00:03]} 23. Rfd1 {[%emt 0:00:51]} Rd3 {[%emt 0:00:52]} 24. Rd2 {[%emt 0:00:20]} Red8 {[%emt 0:00:24]} 25. Rad1 {[%emt 0:00:44]} h5 {[%emt 0:02:03]} 26. Qb3 {[%emt 0:01:07]} b5 {[%emt 0:00:28]} 27. Qxc4 {[%emt 0:01:27]} bxc4 {[%emt 0:00:04]} 28. Kf1 {[%emt 0:00:18]} a4 {[%emt 0:00:36]} 29. a3 {[%emt 0:00:29]} f5 {[%emt 0:00:36]} 30. Ke2 {[%emt 0:00:48]} Be5 {[%emt 0:00:25]} 31. Rxd3 {[%emt 0:00:45]} cxd3+ {[%emt 0:08:29]} 32. Kd2 {[%emt 0:00:34]} Rb8 {[%emt 0:01:37]} 33. Kc1 {[%emt 0:00:13]} Kf7 {[%emt 0:00:19]} 34. h4 {[%emt 0:00:43]} Ke6 {[%emt 0:05:05]} 35. g3 {[%emt 0:00:17]} Rb7 {[%emt 0:01:07]} 36. Re1 {[%emt 0:00:38]} Kd5 {[%emt 0:00:28]} 37. Rd1 {[%emt 0:00:30]} Kc4 {[%emt 0:00:06]} 38. Bg5 {[%emt 0:00:35]} Kb3 {[%emt 0:00:33]} 39. Kb1 {[%emt 0:00:32]} Bg7 {[%emt 0:00:49]} 40. Bf4 {[%emt 0:00:00]} Kc4 {[%emt 0:00:00]} 41. Kc1 {[%emt 0:05:42]} Bf6 {[%emt 0:03:36]} 42. Bd2 {[%emt 0:04:25]} Be7 {[%emt 0:00:45]} 43. Bf4 {[%emt 0:01:59]} Bc5 {[%emt 0:01:45]} 44. Rf1 {[%emt 0:01:29]} Re7 {[%emt 0:01:11]} 45. Be3 {[%emt 0:03:49]} Bxe3+ {[%emt 0:00:54]} 46. fxe3 {[%emt 0:00:09]} Rg7 {[%emt 0:00:04]} 47. Rf2 {[%emt 0:05:15]} g5 {[%emt 0:01:02]} 48. Rxf5 {[%emt 0:03:15]} gxh4 {[%emt 0:00:04]} 49. gxh4 {[%emt 0:00:57]} Rg1+ {[%emt 0:00:09]} 50. Kd2 {[%emt 0:00:08]} Rg2+ {[%emt 0:00:05]} 51. Kc1 {[%emt 0:02:18]} d2+ {[%emt 0:02:27]} 52. Kc2 {[%emt 0:01:14]} d1=Q+ {[%emt 0:01:03]} 53. Kxd1 {[%emt 0:00:10]} Rxb2 {[%emt 0:01:26]} 54. Rxh5 {[%emt 0:01:25]} Rb3 {[%emt 0:01:00]} 55. Rh8 {[%emt 0:02:03]} Rxa3 {[%emt 0:02:42]} 56. h5 {[%emt 0:00:35]} Kd3 {[%emt 0:01:14]} 57. Rd8+ {[%emt 0:00:47]} Kxe3 {[%emt 0:00:04]} 58. h6 {[%emt 0:01:02]} Ra1+ {[%emt 0:00:11]} 59. Kc2 {[%emt 0:00:02]} Ra2+ {[%emt 0:00:55]} 60. Kc1 {[%emt 0:01:50]} Rh2 {[%emt 0:00:07]} 61. Ra8 {[%emt 0:01:56]} Rxh6 {[%emt 0:01:06]} 62. Rxa4 {[%emt 0:00:05]} Kf3 {[%emt 0:01:38]} 63. Ra8 {[%emt 0:01:08]} e3 {[%emt 0:01:15]} 64. Rf8+ {[%emt 0:00:37]} Ke2 {[%emt 0:00:13]} 65. Kc2 {[%emt 0:00:19]} Ke1 {[%emt 0:01:34]} 66. c4 {[%emt 0:00:49]} e2 {[%emt 0:00:31]} 67. c5 {[%emt 0:00:30]} Rh5 {[%emt 0:00:19]} 68. Rc8 {[%emt 0:00:32]} Re5 {[%emt 0:00:24]} 69. Rh8 {[%emt 0:00:37]} Rxc5+ {[%emt 0:00:26]} 70. Kb2 {[%emt 0:00:25]} Re5 {[%emt 0:01:21]} 71. Kc2 {[%emt 0:00:25]} Kf2 {[%emt 0:00:07]} 72. Rf8+ {[%emt 0:00:33]} Ke3 {[%emt 0:00:09]} 0-1

[Event "WYCC 2018 G14"]
[Site "Halkidiki"]
[Date "2018.10.27"]
[Round "8"]
[White "Stepanyan, Eva"]
[Black "Jyothsna L"]
[Result "1/2-1/2"]
[ECO "C06"]
[WhiteElo "1981"]
[BlackElo "2060"]
[Annotator "NA"]
[PlyCount "82"]
[EventDate "2018.10.20"]
[EventType "swiss"]
[EventCountry "GRE"]
[SourceTitle "playchess.com"]
[Source "ChessBase"]
[SourceQuality "1"]
[TimeControl "40/5400+30:1800+30"]

1. e4 {[%emt 0:00:00]} e6 {[%emt 0:01:00]} 2. d4 {[%emt 0:00:00]} d5 {[%emt 0:00:02]} 3. Nd2 {[%emt 0:00:06]} Nf6 {[%emt 0:00:03]} 4. e5 {[%emt 0:00:12]} Nfd7 {[%emt 0:00:02]} 5. Bd3 {[%emt 0:00:13]} c5 {[%emt 0:00:03]} 6. c3 {[%emt 0:00:02]} Nc6 {[%emt 0:00:13]} 7. Ne2 {[%emt 0:00:28]} cxd4 {[%emt 0:00:23]} 8. cxd4 {[%emt 0:00:06]} f6 {[%emt 0:00:19]} 9. exf6 {[%emt 0:00:09]} Nxf6 {[%emt 0:00:03]} 10. Nf3 {[%emt 0:00:21]} Bd6 {[%emt 0:00:03]} 11. O-O {[%emt 0:00:34]} Qc7 {[%emt 0:00:05]} 12. h3 {[%emt 0:00:57]} O-O {[%emt 0:01:21] LiveBook: 126 Games} 13. Be3 $14 {[%emt 0:00:21]} Bd7 {[%emt 0:03:00]} 14. Re1 {[%emt 0:00:33]} Rae8 {[%emt 0:02:24]} 15. Nc3 {[%emt 0:02:01]} a6 {[%emt 0:05:29]} 16. Rc1 {[%emt 0:02:18]} Qb8 {[%emt 0:03:23]} 17. Qd2 {[%emt 0:12:49]} Re7 {[%emt 0:11:36]} 18. a3 {[%emt 0:06:30]} Be8 {[%emt 0:07:49]} 19. Qc2 {[%emt 0:06:22]} Bf4 {[%emt 0:19:19]} 20. Bxf4 {[%emt 0:05:03]} Qxf4 {[%emt 0:03:49]} 21. Ne2 {[%emt 0:01:23]} Qb8 {[%emt 0:01:47]} 22. Ng3 {[%emt 0:02:49]} Qf4 {[%emt 0:05:53]} 23. Rcd1 {[%emt 0:06:04]} Kh8 {[%emt 0:05:43]} 24. Re3 {[%emt 0:14:47]} Nh5 {[%emt 0:09:17]} 25. Nxh5 {[%emt 0:05:12]} Bxh5 {[%emt 0:00:16]} 26. Rde1 {[%emt 0:10:53]} Bxf3 {[%emt 0:06:56]} 27. Rxf3 {[%emt 0:00:20]} Qb8 {[%emt 0:00:03]} 28. Rxf8+ {[%emt 0:04:00]} Qxf8 {[%emt 0:00:02]} 29. Bxh7 {[%emt 0:05:32]} Nxd4 {[%emt 0:02:03]} 30. Qd1 {[%emt 0:04:21]} Nf3+ {[%emt 0:03:43]} 31. gxf3 {[%emt 0:00:13]} Kxh7 {[%emt 0:00:07]} 32. Qd3+ {[%emt 0:00:34]} g6 {[%emt 0:02:41]} 33. Qd4 {[%emt 0:02:10]} Qg7 {[%emt 0:03:09]} 34. Qh4+ {[%emt 0:01:36]} Kg8 {[%emt 0:00:02]} 35. Rc1 {[%emt 0:00:51]} Rf7 {[%emt 0:00:52]} 36. Qg4 {[%emt 0:02:41]} Qf6 {[%emt 0:01:39]} 37. Re1 {[%emt 0:03:52]} Qxf3 {[%emt 0:02:45]} 38. Qxf3 {[%emt 0:00:20]} Rxf3 {[%emt 0:00:02]} 39. Rxe6 {[%emt 0:00:07]} Rxh3 {[%emt 0:01:26]} 40. Rxg6+ {[%emt 0:00:00]} Kf8 {[%emt 0:00:00]} 41. Rd6 {[%emt 0:01:28]} Rb3 {[%emt 0:01:51]} 1/2-1/2